bitfinex-derivatives/quotes_SOLF0:USTF0_20241227
["timestamp","ask_amount","ask_price","bid_price","bid_amount"]
[1735328257319,12.35723941,187.15,187.1,3.18]
[1735328257918,2.676,187.11,187.1,3.18]
[1735328258815,2.6759,187.12,187.1,3.18]
[1735328259021,12.35723941,187.15,187.1,3.18]
[1735328259209,1.6652,187.17,187.1,3.18]
[1735328260418,12.35723941,187.18,187.1,3.18]
[1735328261820,12.35723941,187.21,187.1,15.53723941]
[1735328262619,12.35723941,187.21,187.11,3.18]
[1735328263020,2.675,187.18,187.12,2.6759]
[1735328263216,12.35723941,187.21,187.12,2.6759]
[1735328264420,2.6752,187.17,187.12,2.6759]
[1735328264720,12.35723941,187.21,187.11,3.18]
[1735328264920,12.35723941,187.21,187.11,6.3962]
[1735328265122,1.6566,187.22,187.11,7.962]
[1735328265622,2.6751,187.18,187.14,2.6756]
[1735328265923,1.6566,187.22,187.12,2.6757]
[1735328266117,2.6753,187.16,187.12,2.6757]
[1735328266313,12.35723941,187.21,187.12,2.6757]
[1735328267217,2.6751,187.18,187.12,2.6757]
[1735328267522,2.6751,187.18,187.13,2.6757]
[1735328268118,2.6752,187.17,187.12,2.6759]
[1735328269123,2.6752,187.17,187.11,7.962]
[1735328269424,12.35723941,187.23,187.11,7.962]
[1735328269819,2.6748,187.2,187.13,12.35723941]
[1735328270020,13.46611281,187.26,187.13,12.35723941]
[1735328270525,13.46611281,187.26,187.16,2.6752]
[1735328270721,13.46611281,187.26,187.17,3.22]
[1735328271321,2.6746,187.21,187.17,5.8951]
[1735328271921,2.6746,187.21,187.18,7.90079186]
[1735328272122,2.6749,187.2,187.17,3.22]
[1735328275021,13.45508613,187.26,187.17,3.22]
[1735328275223,2.6749,187.19,187.17,3.22]
[1735328275625,2.6748,187.2,187.17,3.22]
[1735328276727,13.45508613,187.26,187.17,3.22]
[1735328277027,2.6747,187.21,187.17,5.8951]
[1735328281519,13.45508613,187.26,187.17,3.22]
[1735328281722,13.45508613,187.26,187.18,2.675]
[1735328282319,2.6744,187.23,187.18,2.675]
[1735328283232,1.1088734,187.26,187.17,15.56621273]
[1735328283433,1.1088734,187.26,187.2,12.34621273]
[1735328283824,1.1088734,187.26,187.23,2.6742]
[1735328284027,1.1088734,187.26,187.24,3.22]
[1735328284427,1.1088734,187.26,187.25,2.674]
[1735328284822,1.00696945,187.26,187.25,2.674]
[1735328285031,22.31226829,187.33,187.24,3.22]
[1735328285334,15.52901273,187.36,187.24,3.22]
[1735328286430,2.673,187.33,187.25,2.674]
[1735328286626,15.52901273,187.36,187.24,3.22]
[1735328287231,2.6731,187.32,187.24,3.22]
[1735328288437,2.6731,187.32,187.27,2.6737]
[1735328289131,2.6731,187.32,187.26,2.6738]
[1735328289336,2.6731,187.32,187.24,3.22]
[1735328289936,2.6731,187.32,187.27,2.6736]
[1735328290130,2.6731,187.32,187.26,12.34621273]
[1735328290336,2.6731,187.32,187.27,3.22]
[1735328290830,2.6729,187.33,187.28,2.6736]
[1735328293836,2.6729,187.33,187.29,2.6734]
[1735328296031,2.6729,187.33,187.29,10.56439392]
[1735328297228,2.6729,187.33,187.27,4.846]
[1735328297229,2.6726,187.35,187.31,7.89099392]
[1735328297432,2.6726,187.35,187.32,3.22]
[1735328301639,7.89099392,187.36,187.32,3.22]
[1735328302246,2.6729,187.33,187.32,3.22]
[1735328303842,7.89099392,187.34,187.19,1.6582]
[1735328304047,7.89099392,187.29,187.23,7.89099392]
[1735328304240,7.89099392,187.27,187.24,3.22]
[1735328304439,2.674,187.25,187.21,7.89099392]
[1735328304743,2.674,187.25,187.22,3.22]
[1735328306653,2.6742,187.24,187.23,3.22]
[1735328306856,7.89099392,187.25,187.1,4.8252]
[1735328307048,7.89099392,187.23,187.17,7.89099392]
[1735328307245,7.89099392,187.23,187.18,3.22]
[1735328308051,7.89099392,187.23,187.15,2.6755]
[1735328308258,7.89099392,187.21,187.16,7.89099392]
[1735328308462,7.89099392,187.21,187.17,3.22]
[1735328308762,2.6749,187.19,187.18,3.22]
[1735328310260,2.6756,187.14,187.1,57.187]
[1735328310459,2.6756,187.14,187.11,3.22]
[1735328310665,7.89099392,187.14,187.12,3.22]
[1735328310965,2.6757,187.13,187.12,3.22]
[1735328311165,7.89099392,187.16,187.12,3.22]
[1735328311761,3.1546,187.19,187.12,3.22]
[1735328313362,2.6753,187.16,187.12,3.22]
[1735328313562,3.1546,187.19,187.12,3.22]
[1735328315069,2.6756,187.14,187.13,3.22]
[1735328315269,3.1546,187.19,187.13,3.22]
[1735328315660,2.6754,187.16,187.13,3.22]
[1735328315864,3.1546,187.19,187.13,3.22]
[1735328316169,2.6754,187.16,187.13,3.22]
[1735328316468,3.1546,187.19,187.13,3.22]
[1735328316866,2.6756,187.14,187.13,3.22]
[1735328320273,2.676,187.11,187.1,55.56]
[1735328320478,12.35418279,187.18,187.1,58.78]
[1735328321676,2.6756,187.15,187.1,58.78]
[1735328321877,3.1546,187.19,187.1,58.78]
[1735328322174,2.6758,187.13,187.1,58.78]
[1735328322577,12.35418279,187.17,187.1,58.78]
[1735328322870,2.6759,187.12,187.1,58.78]
[1735328323767,2.6758,187.13,187.1,58.78]
[1735328323971,3.1546,187.19,187.1,58.78]
[1735328324675,12.35418279,187.17,187.1,55.56]
[1735328324977,12.35418279,187.17,187.11,3.22]
[1735328325169,2.6759,187.12,187.11,3.22]
[1735328325375,12.35418279,187.14,187.11,3.22]
[1735328326077,2.6759,187.12,187.11,3.22]
[1735328326275,12.35418279,187.14,187.04,12.35418279]
[1735328326478,12.35418279,187.14,187.05,3.22]
[1735328327074,2.6765,187.08,187.05,3.22]
[1735328327781,12.35418279,187.14,187.05,3.22]
[1735328327979,2.6763,187.1,187.05,3.22]
[1735328328375,12.35418279,187.18,187.07,12.35418279]
[1735328328687,2.6757,187.14,187.09,2.6763]
[1735328328877,2.6757,187.14,187.1,3.22]
[1735328329483,12.35418279,187.18,187.1,3.22]
[1735328331683,2.6759,187.13,187.1,3.22]
[1735328332683,12.35418279,187.18,187.1,3.22]
[1735328332879,2.676,187.11,187.1,3.22]
[1735328333584,12.35418279,187.15,187.1,3.24]
[1735328333783,7.91088228,187.12,187.1,3.24]
[1735328335481,2.676,187.11,187.1,3.24]
[1735328338983,7.91088228,187.12,187.05,7.91088228]
[1735328339183,7.91088228,187.12,187.06,3.24]
[1735328339679,2.6764,187.09,187.06,3.24]
[1735328340583,2.6769,187.05,187.02,1.6668]
[1735328340787,7.91088228,187.04,187.03,3.24]
[1735328341785,2.6775,187.01,186.98,55.6]
[1735328341985,2.6775,187.01,187.0,3.24]
[1735328344288,7.91088228,187.06,187.0,3.24]
[1735328344481,7.91088228,187.08,187.02,7.91088228]
[1735328344679,2.6767,187.07,187.02,7.91088228]
[1735328344882,7.91088228,187.08,187.02,7.91088228]
[1735328346086,2.6768,187.06,187.02,7.91088228]
[1735328346484,7.91088228,187.1,187.02,9.46968228]
[1735328346683,2.6768,187.06,187.02,12.14698228]
[1735328347088,7.91088228,187.08,187.02,9.46968228]
[1735328347288,2.6771,187.04,187.02,9.46968228]
[1735328347689,7.91088228,187.06,187.02,1.5588]
[1735328347991,7.91088228,187.06,187.0,11.15088228]
[1735328348584,2.677,187.05,187.0,11.15088228]
[1735328348791,7.91088228,187.06,187.0,11.15088228]
[1735328349589,2.6773,187.03,187.0,11.15088228]
[1735328349787,2.6773,187.03,187.0,3.24]
[1735328350587,12.36792869,187.09,187.0,3.24]
[1735328350788,2.6771,187.04,187.0,3.24]
[1735328351196,12.36792869,187.09,187.0,3.24]
[1735328351403,15.99361837,187.18,187.0,3.24]
[1735328351404,2.6769,187.06,187.01,2.6774]
[1735328351892,2.6769,187.05,187.0,5.9176]
[1735328353200,12.36792869,187.12,187.0,3.24]
[1735328353390,12.36792869,187.12,187.02,2.6773]
[1735328355999,3.1546,187.19,187.03,12.36792869]
[1735328356000,12.36792869,187.15,187.03,12.36792869]
[1735328356299,12.36792869,187.15,187.04,3.0863]
[1735328356503,2.6762,187.11,187.05,5.9168]
[1735328356801,12.36792869,187.15,187.05,5.9168]
[1735328357700,12.36792869,187.15,187.05,3.24]
[1735328357897,12.36792869,187.11,186.99,9.8406936]
[1735328358103,12.36792869,187.08,186.99,11.4729936]
[1735328358498,12.36792869,187.08,187.0,3.24]
[1735328358700,2.6775,187.01,187.0,3.24]
[1735328358903,12.36792869,187.08,187.0,3.24]
[1735328360596,2.6774,187.02,187.0,3.24]
[1735328360998,12.36792869,187.08,187.0,3.24]
[1735328361204,2.6775,187.01,187.0,3.24]
[1735328362606,2.6778,186.99,186.98,55.6]
[1735328362807,2.6778,186.99,186.98,58.82]
[1735328364413,12.36792869,187.05,186.94,1.6453]
[1735328364599,2.6781,186.97,186.95,3.22]
[1735328365809,2.6782,186.96,186.95,3.22]
[1735328367310,12.36792869,187.02,186.95,3.22]
[1735328368805,12.36792869,187.05,186.95,15.58792869]
[1735328369009,15.36514767,187.1,186.95,15.58792869]
[1735328369010,12.36792869,187.08,186.95,15.58792869]
[1735328369210,15.36514767,187.1,186.98,12.36792869]
[1735328369410,4.6751,187.1,186.98,12.36792869]
[1735328369807,2.6764,187.07,187.02,7.91318063]
[1735328370112,7.91318063,187.09,187.03,3.22]
[1735328370810,7.91318063,187.07,187.03,3.22]
[1735328372014,2.6766,187.06,187.03,3.22]
[1735328372313,4.6751,187.1,187.04,3.22]
[1735328373209,2.6767,187.05,187.04,3.22]
[1735328376413,2.6772,187.02,186.98,12.36584318]
[1735328376606,2.6772,187.02,186.94,1.6453]
[1735328376607,12.36584318,187.09,186.99,3.22]
[1735328377116,12.36584318,187.06,187.0,3.22]
[1735328377321,12.36584318,187.03,187.0,3.22]
[1735328377717,2.6772,187.01,187.0,3.22]
[1735328379226,2.6778,186.98,186.94,1.6453]
[1735328379422,12.36584318,187.03,186.95,3.22]
[1735328379927,2.6778,186.97,186.95,3.22]
[1735328380620,2.6777,186.98,186.95,3.22]
[1735328382322,2.6778,186.97,186.95,3.22]
[1735328383023,2.6774,187.0,186.96,2.6779]
[1735328383222,12.36584318,187.09,186.98,12.36584318]
[1735328383922,12.36584318,187.09,187.0,2.6774]
[1735328384124,12.36584318,187.09,187.01,3.22]
[1735328384332,12.36584318,187.12,187.01,15.58584318]
[1735328384525,2.6764,187.07,187.03,2.6769]
[1735328384831,2.6764,187.07,187.01,15.58584318]
[1735328386231,2.6764,187.07,187.02,2.6771]
[1735328388124,2.6764,187.07,187.03,2.6769]
[1735328388331,12.36584318,187.12,187.03,2.6769]
[1735328388332,2.6762,187.08,187.03,2.6769]
[1735328389232,12.36584318,187.12,187.03,2.6769]
[1735328389531,12.36584318,187.12,187.02,1.6197]
[1735328389831,12.36584318,187.09,187.03,3.22]
[1735328390725,12.36584318,187.09,186.95,14.00714318]
[1735328390921,12.36584318,187.06,186.96,3.18]
[1735328391128,12.36584318,187.06,186.95,14.00714318]
[1735328391335,12.36584318,187.06,186.96,3.18]
[1735328391833,12.36584318,187.06,186.95,14.00714318]
[1735328392030,12.36584318,187.06,186.96,3.18]
[1735328393635,2.6769,187.03,186.96,3.18]
[1735328394431,2.6769,187.03,186.98,2.6776]
[1735328395535,2.6772,187.01,186.96,5.8578]
[1735328397134,2.6772,187.01,186.97,2.6777]
[1735328399938,1.6415,187.07,186.96,3.18]
[1735328400843,12.36584318,187.06,186.96,3.18]
[1735328401433,12.36584318,187.06,186.92,12.36584318]
[1735328401434,12.36584318,187.03,186.92,12.36584318]
[1735328401639,12.36584318,187.03,186.93,3.18]
[1735328402437,2.6779,186.97,186.93,3.18]
[1735328402639,2.6779,186.97,186.94,3.18]
[1735328403838,12.36584318,187.03,186.94,3.18]
[1735328404542,2.6779,186.97,186.95,3.18]
[1735328404944,2.6779,186.97,186.96,3.18]
[1735328406043,2.6775,186.99,186.96,3.18]
[1735328406940,2.6778,186.97,186.96,3.18]
[1735328407243,12.36584318,187.03,186.96,3.18]
[1735328408449,2.6778,186.97,186.96,3.18]
[1735328410244,12.36584318,187.03,186.96,3.18]
[1735328411851,2.6777,186.98,186.96,3.18]
[1735328413247,12.36584318,187.03,186.91,2.68678738]
[1735328413453,12.36584318,187.0,186.92,3.18]
[1735328414651,2.6781,186.95,186.92,3.18]
[1735328415249,12.36584318,187.03,186.92,3.18]
[1735328415451,2.678,186.96,186.92,3.18]
[1735328415750,12.36584318,187.03,186.92,15.54584318]
[1735328416253,12.36584318,187.06,186.92,15.54584318]
[1735328417557,2.6776,186.99,186.94,2.6781]
[1735328418156,12.36584318,187.06,186.96,2.6779]
[1735328418354,1.6415,187.07,186.97,3.18]
[1735328418751,2.60535996,187.1,186.98,12.36584318]
[1735328418956,2.60535996,187.1,186.98,13.89394318]
[1735328419355,24.73329848,187.12,187.01,12.36584318]
[1735328419558,14.04644318,187.12,187.02,3.18]
[1735328420257,2.6765,187.06,187.02,3.18]
[1735328420755,12.36584318,187.09,187.02,3.18]
[1735328421052,2.6769,187.03,187.02,3.18]
[1735328422149,2.6768,187.05,187.02,3.18]
[1735328422761,12.36584318,187.09,187.02,3.18]
[1735328424258,12.36584318,187.06,186.96,3.1712]
[1735328424455,12.36584318,187.06,186.97,3.18]
[1735328424758,2.6771,187.02,186.98,3.18]
[1735328424948,12.36584318,187.03,186.99,3.18]
[1735328425459,2.6774,187.0,186.99,3.18]
[1735328428560,2.6775,186.99,186.98,3.18]
[1735328429662,12.36584318,187.0,186.91,2.68678738]
[1735328429860,2.678,186.96,186.92,3.18]
[1735328431262,12.36584318,187.03,186.92,15.54584318]
[1735328432961,2.6775,187.0,186.95,2.6781]
[1735328433161,12.36584318,187.03,186.95,2.6781]
[1735328433364,12.36584318,187.03,186.92,15.54584318]
[1735328433567,2.6779,186.97,186.92,18.22424318]
[1735328434166,2.678,186.96,186.92,18.22424318]
[1735328435063,2.6781,186.95,186.92,3.18]
[1735328435265,12.36584318,187.03,186.92,3.18]
[1735328435765,2.6783,186.94,186.92,3.18]
[1735328437767,12.36584318,187.0,186.92,3.18]
[1735328438062,2.6781,186.95,186.92,3.18]
[1735328438467,2.6781,186.95,186.91,5.36538738]
[1735328438767,12.36584318,187.0,186.92,3.18]
[1735328438967,2.6784,186.93,186.91,2.68678738]
[1735328439164,2.6784,186.93,186.92,3.18]
[1735328439663,2.6785,186.92,186.91,2.68678738]
[1735328439856,2.6785,186.92,186.91,3.18]
[1735328442069,2.6783,186.94,186.91,3.18]
[1735328442965,2.6777,186.98,186.91,3.18]
[1735328443168,12.36584318,187.03,186.91,3.18]
[1735328443470,12.36584318,187.03,186.94,2.6782]
[1735328444570,2.6777,186.98,186.94,2.6782]
[1735328446970,2.6777,186.98,186.93,2.6783]
[1735328450873,2.6778,186.97,186.92,2.6785]
[1735328451274,12.36584318,187.03,186.91,3.18]
[1735328452473,2.6779,186.96,186.91,5.8586]
[1735328452874,12.36584318,187.0,186.92,3.18]
[1735328453064,2.6784,186.93,186.92,3.18]
[1735328453871,2.6782,186.94,186.92,3.18]
[1735328454072,12.36584318,187.0,186.92,3.18]
[1735328454975,2.6781,186.95,186.92,3.18]
[1735328455176,12.36584318,187.0,186.92,3.18]
[1735328455876,2.6784,186.93,186.92,3.18]
[1735328456174,12.36584318,186.97,186.88,1.6432]
[1735328456372,12.36584318,186.97,186.92,3.18]
[1735328456571,2.6784,186.93,186.92,3.18]
[1735328461382,10.60290054,186.93,186.92,3.18]
[1735328461582,2.6784,186.93,186.92,3.18]
[1735328462075,7.92450054,186.95,186.92,3.18]
[1735328462277,7.92450054,186.99,186.92,11.10450054]
[1735328462582,2.678,186.96,186.92,13.78300054]
[1735328463581,2.6781,186.96,186.92,11.10450054]
[1735328463780,15.48922317,187.05,186.92,11.10450054]
[1735328463977,7.92450054,186.99,186.92,11.10450054]
[1735328464177,7.92450054,187.0,186.92,11.10450054]
[1735328464571,7.92450054,186.98,186.92,11.10450054]
[1735328465374,2.6779,186.97,186.92,11.10450054]
[1735328465983,2.6779,186.97,186.92,13.78300054]
[1735328466581,2.6775,187.0,186.94,7.92450054]
[1735328466882,7.92450054,187.01,186.94,7.92450054]
[1735328467383,7.92450054,186.99,186.92,11.10450054]
[1735328468086,2.6778,186.97,186.94,7.92450054]
[1735328468289,7.92450054,187.01,186.94,7.92450054]
[1735328468581,2.6777,186.98,186.94,10.60270054]
[1735328469380,2.6775,186.99,186.95,2.678]
[1735328469579,2.6775,186.99,186.96,7.92450054]
[1735328469787,2.6775,186.99,186.97,3.18]
[1735328470091,2.6774,187.0,186.97,3.18]
[1735328470287,7.92450054,187.03,186.97,3.18]
[1735328470483,7.92450054,187.03,186.97,5.8577]
[1735328470791,7.92450054,187.03,186.97,3.18]
[1735328471191,7.92450054,187.01,186.97,3.18]
[1735328472389,2.6775,187.0,186.97,3.18]
[1735328473188,7.92450054,187.01,186.97,3.18]
[1735328473391,2.6775,186.99,186.97,3.18]
[1735328474488,7.92450054,187.03,186.97,3.18]
[1735328475292,2.6772,187.01,186.97,3.18]
[1735328476793,2.6774,187.0,186.97,3.18]
[1735328478588,7.92450054,187.03,186.97,3.18]
[1735328478795,2.6772,187.01,186.97,5.8578]
[1735328478994,7.92450054,187.05,187.0,7.92450054]
[1735328479294,7.92450054,187.08,187.0,7.92450054]
[1735328479488,2.6766,187.06,187.02,7.92450054]
[1735328479690,4.1634704,187.1,187.03,3.18]
[1735328479890,10.49757094,187.1,187.03,3.18]
[1735328480094,2.6765,187.06,187.03,3.18]
[1735328480695,2.6766,187.06,187.03,3.18]
[1735328481092,7.92450054,187.08,187.03,3.18]
[1735328481595,7.92450054,187.06,187.03,3.18]
[1735328481890,2.6766,187.05,187.03,3.18]
[1735328489703,2.6762,187.08,187.04,7.92450054]
[1735328489901,1.5204,187.16,187.06,7.92450054]
[1735328490097,11.12560054,187.15,187.08,7.92450054]
[1735328490303,2.6752,187.15,187.1,7.92450054]
[1735328490504,7.92450054,187.17,187.11,3.16]
[1735328491204,2.6752,187.16,187.11,3.16]
[1735328491805,2.6755,187.14,187.1,7.92450054]
[1735328492007,7.92450054,187.15,187.11,3.16]
[1735328492505,2.6756,187.12,187.11,3.16]
[1735328500414,2.6755,187.13,187.11,3.16]
[1735328502519,2.6756,187.12,187.11,3.16]
[1735328502822,7.92450054,187.13,187.11,3.16]
[1735328503622,2.6756,187.12,187.11,3.16]
[1735328503822,7.92450054,187.13,187.11,3.16]
[1735328504225,10.60010054,187.13,187.11,3.16]
[1735328504925,2.6753,187.15,187.11,3.16]
[1735328505228,7.92450054,187.14,187.11,3.16]
[1735328505624,10.59990054,187.14,187.11,3.16]
[1735328506725,7.92450054,187.14,187.11,3.16]
[1735328507324,2.6755,187.13,187.11,3.16]
[1735328508028,11.15510054,187.21,187.11,11.08450054]
[1735328508227,11.15510054,187.21,187.15,7.92450054]
[1735328508528,2.6745,187.2,187.16,3.16]
[1735328508924,9.53130054,187.21,187.16,3.16]
[1735328509121,12.20570054,187.21,187.16,3.16]
[1735328509326,9.53130054,187.21,187.16,3.16]
[1735328510628,1.5328,187.26,187.16,3.16]
[1735328511025,7.92450054,187.22,187.16,3.16]
[1735328511717,10.59880054,187.22,187.16,5.835]
[1735328512127,2.6743,187.22,187.16,5.835]
[1735328512924,2.6744,187.21,187.16,5.835]
[1735328513626,2.6746,187.19,187.16,3.16]
[1735328517230,1.5328,187.26,187.16,3.16]
[1735328517627,2.6741,187.23,187.17,2.6749]
[1735328518333,1.5328,187.26,187.17,2.6749]
[1735328518532,2.6742,187.23,187.16,15.50693603]
[1735328518731,2.6742,187.23,187.18,2.6747]
[1735328519836,2.6739,187.24,187.19,2.6746]
[1735328520939,2.6741,187.23,187.18,2.6748]
[1735328522236,2.6742,187.22,187.17,2.6749]
[1735328523042,13.89523603,187.29,187.16,15.50693603]
[1735328523340,2.6739,187.24,187.19,2.6746]
[1735328524337,2.6741,187.23,187.18,2.6747]
[1735328525341,2.6741,187.23,187.19,3.18]
[1735328525936,2.6743,187.22,187.19,3.18]
[1735328526634,13.89523603,187.29,187.19,3.18]
[1735328526635,2.6744,187.21,187.19,3.18]
[1735328526842,12.34693603,187.26,187.2,3.18]
[1735328527844,2.6744,187.21,187.2,3.18]
[1735328528342,2.6736,187.27,187.2,3.18]
[1735328528540,12.34693603,187.28,187.2,3.18]
[1735328530037,12.34693603,187.28,187.21,3.18]
[1735328530448,2.6742,187.22,187.21,3.18]
[1735328533947,10.57643758,187.22,187.21,3.18]
[1735328534647,7.90223758,187.22,187.11,5.27722417]
[1735328534844,7.90223758,187.17,187.11,10.50366175]
[1735328535044,7.90223758,187.17,187.12,3.18]
[1735328535543,2.6751,187.16,187.12,3.18]
[1735328535745,7.90223758,187.17,187.12,3.18]
[1735328535940,7.90223758,187.17,187.13,3.18]
[1735328536140,7.90223758,187.19,187.13,11.08223758]
[1735328536550,9.52173758,187.21,187.13,11.08223758]
[1735328536752,7.90223758,187.21,187.15,7.90223758]
[1735328536949,7.90223758,187.25,187.17,7.90223758]
[1735328537156,2.6738,187.25,187.19,10.57673758]
[1735328537355,2.6738,187.25,187.2,3.18]
[1735328538753,2.674,187.24,187.2,3.18]
[1735328538955,9.52173758,187.27,187.2,3.18]
[1735328539652,7.90223758,187.27,187.21,7.90223758]
[1735328540553,2.6738,187.25,187.21,7.90223758]
[1735328540758,7.90223758,187.27,187.21,7.90223758]
[1735328541856,2.6739,187.25,187.21,7.90223758]
[1735328542353,2.6739,187.24,187.21,7.90223758]
[1735328543357,7.90223758,187.27,187.21,7.90223758]
[1735328543559,2.6741,187.23,187.2,3.18]
[1735328544059,2.6742,187.22,187.2,3.18]
[1735328544453,2.6742,187.22,187.21,3.14]
[1735328548256,2.6747,187.19,187.16,7.90223758]
[1735328548457,2.6747,187.19,187.17,3.14]
[1735328550269,2.6747,187.19,187.16,7.90223758]
[1735328550470,2.6747,187.19,187.17,3.14]
[1735328554074,7.90223758,187.23,187.17,3.14]
[1735328554279,7.90223758,187.23,187.18,7.90223758]
[1735328555580,2.6745,187.21,187.18,7.90223758]
[1735328556075,2.6745,187.2,187.17,3.14]
[1735328556672,2.6745,187.2,187.18,7.90223758]
[1735328558370,2.6749,187.18,187.14,4.7711]
[1735328558568,7.90223758,187.21,187.15,3.14]
[1735328559269,2.675,187.17,187.15,3.14]
[1735328559475,7.90223758,187.19,187.15,3.14]
[1735328559782,7.90223758,187.19,187.16,3.14]
[1735328559974,7.90223758,187.17,187.16,3.14]
[1735328561681,10.57723758,187.17,187.16,3.14]
[1735328563177,2.6753,187.15,187.14,3.14]
[1735328563775,7.90223758,187.17,187.14,3.14]
[1735328563974,2.6752,187.15,187.14,3.14]
[1735328580396,2.6756,187.13,187.11,7.90223758]
[1735328580694,2.6756,187.13,187.12,3.14]
[1735328584598,10.66462996,187.24,187.09,7.90223758]
[1735328584599,2.6758,187.11,187.09,7.90223758]
[1735328584897,2.6758,187.11,187.1,3.14]
[1735328585091,7.90223758,187.15,187.09,7.90223758]
[1735328585296,7.90223758,187.13,187.07,7.90223758]
[1735328585497,7.90223758,187.13,187.08,3.14]
[1735328585797,2.6762,187.09,187.08,3.14]
[1735328591597,42.3835363,187.2,187.08,3.14]
[1735328591798,7.90223758,187.15,187.09,7.90223758]
[1735328592199,2.6756,187.13,187.09,7.90223758]
[1735328592400,7.90223758,187.15,187.09,7.90223758]
[1735328592602,7.90223758,187.15,187.08,3.14]
[1735328592902,2.6758,187.12,187.08,3.14]
[1735328595200,2.6766,187.06,187.03,60.4834]
[1735328595503,2.6766,187.06,187.04,3.14]
[1735328596000,7.90223758,187.07,187.01,29.53677426]
[1735328596210,7.90223758,187.05,187.02,3.14]
[1735328596395,7.90223758,187.03,187.02,3.14]
[1735328597402,10.57913758,187.03,187.02,3.14]
[1735328598208,23.83286829,187.13,187.02,3.14]
[1735328598401,7.90223758,187.08,187.02,3.14]
[1735328599006,2.6765,187.07,187.02,3.14]
[1735328599203,7.90223758,187.08,187.02,3.14]
[1735328599703,7.90223758,187.06,187.02,3.14]
[1735328600010,7.90223758,187.04,187.0,3.14]
[1735328600607,10.57903758,187.04,187.0,3.14]
[1735328600799,2.6768,187.04,187.0,3.14]
[1735328604810,7.90223758,187.04,187.0,3.14]
[1735328605208,7.90223758,187.04,186.98,2.80160588]
[1735328605209,7.90223758,187.02,186.98,2.80160588]
[1735328605409,7.90223758,187.02,186.99,3.14]
[1735328606323,2.6774,187.0,186.99,3.14]
[1735328606924,2.6775,186.99,186.98,2.80160588]
[1735328607117,2.6775,186.99,186.98,5.94160588]
[1735328608623,2.6775,186.99,186.98,2.80160588]
[1735328608927,2.6775,186.99,186.98,3.14]
[1735328624836,7.90223758,187.0,186.92,1.6677]
[1735328625035,2.6782,186.95,186.93,3.14]
[1735328625335,2.6782,186.95,186.92,1.6677]
[1735328625336,2.6782,186.95,186.94,3.14]
[1735328625839,7.90223758,186.96,186.94,3.14]
[1735328626032,10.58023758,186.96,186.94,3.14]
[1735328626635,2.678,186.96,186.94,3.14]
[1735328628939,2.678,186.96,186.92,9.56993758]
[1735328629135,7.90223758,186.97,186.93,3.14]
[1735328629338,2.6781,186.95,186.93,3.14]
[1735328630538,2.6781,186.95,186.94,3.14]
[1735328632240,7.90223758,186.97,186.94,3.14]
[1735328632440,2.6779,186.97,186.94,3.14]
[1735328637542,2.678,186.96,186.94,3.14]
[1735328645345,7.90223758,186.97,186.92,1.6677]
[1735328645547,2.6781,186.95,186.93,3.14]
[1735328650145,7.90223758,186.95,186.88,2.8031528]
[1735328650354,7.90223758,186.95,186.89,3.14]
[1735328650549,1.6589,187.02,186.89,3.14]
[1735328650752,1.6589,187.02,186.89,11.04223758]
[1735328650953,7.90223758,186.96,186.89,11.04223758]
[1735328651145,7.90223758,186.98,186.91,7.90223758]
[1735328651654,7.90223758,187.0,186.93,7.90223758]
[1735328651849,7.90223758,187.0,186.94,3.14]
[1735328652452,2.6777,186.98,186.94,3.14]
[1735328655647,7.90223758,187.0,186.94,3.14]
[1735328655856,2.6778,186.97,186.94,3.14]